fUST/lending_fUST_20250320
["ID","MTS","AMOUNT","RATE_DAILY","PERIOD"]
[356453774,1742472632479,-158.6305,0.00030375,120]
[356453775,1742472632488,-219.052084,0.00030422,2]
[356453776,1742472632497,-1000.0,0.00032,7]
[356453777,1742472632506,-168.47814796,0.00032074,2]
[356453778,1742472632516,-600.0,0.00032156,2]
[356453779,1742472632525,-400.0,0.00032173,2]
[356453780,1742472632534,-500.0,0.00032173,2]
[356453781,1742472632544,-443.55592177,0.00032173,2]
[356453782,1742472632553,-163.58394417,0.00032173,2]
[356453783,1742472632562,-39063.7389317,0.00032174,7]
[356453784,1742472632870,-264625.74587801,0.00032174,7]
[356453815,1742472638267,-532.7306933,0.00032173,2]
[356453817,1742472638277,-626.15587925,0.00032174,7]
[356453861,1742472643384,-86.40796402,0.00032174,7]
[356453875,1742472646417,-8408.27236997,0.00032174,7]
[356453876,1742472991223,-150.0,0.00024953,120]
[356453879,1742473564871,202.1401431,2.5e-05,2]
[356453881,1742473767138,-365.1684816,0.00026137,2]
[356453882,1742473767160,-110.6055486,0.00027444,5]
[356453883,1742473773166,388.92,0.00015175,120]
[356453939,1742473832412,-389.3944514,0.00027444,5]
[356453941,1742473832422,-900.9364256,0.00028548,2]
[356453943,1742473832431,-500.0,0.00031496,2]
[356453945,1742473832441,-587.23185873,0.00031496,2]
[356453946,1742473832450,-400.0,0.00031496,2]
[356453948,1742473832459,-45072.58005031,0.00031497,2]
[356453950,1742473832469,-314.40197869,0.00031571,2]
[356453952,1742473832478,-160.31519564,0.00031671,30]
[356453954,1742473832488,-500.0,0.00031875,2]
[356453955,1742473832497,-500.0,0.00031876,120]
[356453958,1742473832507,-500.0,0.00031876,120]
[356453961,1742473832519,-500.0,0.00031876,120]
[356453963,1742473832529,-500.0,0.00031876,120]
[356453965,1742473832539,-500.0,0.00031876,120]
[356453967,1742473832549,-500.0,0.00031876,120]
[356453969,1742473832560,-500.0,0.00031876,120]
[356453971,1742473832570,-500.0,0.00031876,120]
[356453973,1742473832579,-500.0,0.00031876,120]
[356453975,1742473832589,-500.0,0.00031876,120]
[356453977,1742473832599,-500.0,0.00031876,120]
[356453979,1742473832610,-500.0,0.00031876,120]
[356453981,1742473832621,-500.0,0.00031876,120]
[356453983,1742473832632,-500.0,0.00031876,120]
[356453985,1742473832642,-500.0,0.00031876,120]
[356453987,1742473832652,-500.0,0.00031876,120]
[356453989,1742473832662,-500.0,0.00031876,120]
[356453991,1742473832671,-500.0,0.00031876,120]
[356453992,1742473832681,-500.0,0.00031876,120]
[356453993,1742473832691,-500.0,0.00031876,120]
[356453994,1742473832701,-500.0,0.00031876,120]
[356453995,1742473832712,-500.0,0.00031876,120]
[356453996,1742473832721,-500.0,0.00031876,120]
[356453997,1742473832731,-500.0,0.00031876,120]
[356453998,1742473832741,-36.24494312,0.00031876,120]
[356454025,1742473843386,-160.48914524,0.00031875,2]
[356454026,1742473843396,-463.75505688,0.00031876,120]
[356454027,1742473843407,-85.7520651,0.00031876,120]
[356454039,1742473846396,-414.2479349,0.00031876,120]
[356454040,1742473846406,-500.0,0.00031876,120]
[356454041,1742473846416,-500.0,0.00031876,120]
[356454042,1742473846426,-500.0,0.00031876,120]
[356454043,1742473846436,-500.0,0.00031876,120]
[356454044,1742473846446,-500.0,0.00031876,120]
[356454045,1742473846456,-500.0,0.00031876,120]
[356454046,1742473846466,-500.0,0.00031876,120]
[356454047,1742473846475,-500.0,0.00031876,120]
[356454048,1742473846485,-500.0,0.00031876,120]
[356454049,1742473846495,-500.0,0.00031876,120]
[356454050,1742473846505,-500.0,0.00031876,120]
[356454051,1742473846519,-500.0,0.00031876,120]
[356454052,1742473846530,-500.0,0.00031876,120]
[356454053,1742473846540,-500.0,0.00031876,120]
[356454054,1742473846550,-500.0,0.00031876,120]
[356454055,1742473846568,-500.0,0.00031876,120]
[356454056,1742473846579,-500.0,0.00031876,120]
[356454057,1742473846591,-100.7520651,0.00031876,120]
[356454058,1742473846605,-399.2479349,0.00031876,120]
[356454059,1742473846615,-500.0,0.00031876,120]
[356454060,1742473846625,-216.82704433,0.00031876,120]
[356454061,1742473846768,-283.17295567,0.00031876,120]
[356454062,1742473846778,-500.0,0.00031876,120]
[356454063,1742473846788,-47.48895934,0.00031876,120]
[356454064,1742473846800,-452.51104066,0.00031876,120]
[356454065,1742473846810,-500.0,0.00031876,120]
[356454066,1742473846820,-500.0,0.00031876,120]
[356454067,1742473846830,-500.0,0.00031876,120]
[356454068,1742473846840,-500.0,0.00031876,120]
[356454069,1742473846849,-500.0,0.00031876,120]
[356454070,1742473846859,-500.0,0.00031876,120]
[356454071,1742473846869,-500.0,0.00031876,120]
[356454072,1742473846878,-500.0,0.00031876,120]
[356454073,1742473846888,-500.0,0.00031876,120]
[356454074,1742473846898,-500.0,0.00031876,120]
[356454075,1742473846908,-500.0,0.00031876,120]
[356454076,1742473846918,-130.33546534,0.00031876,120]
[356454077,1742473846934,-369.66453466,0.00031876,120]
[356454078,1742473846944,-500.0,0.00031876,120]
[356454079,1742473846954,-232.2729085,0.00031876,120]
[356454080,1742473847659,1287.0,0.00012,30]
[356454121,1742474759388,443.83252537,0.000115,2]
[356454143,1742475038511,-152.91,0.00025,30]
[356454144,1742475038521,-400.0,0.00030351,2]
[356454145,1742475038530,-590.31592201,0.00030352,2]
[356454197,1742475040814,-772.79413623,0.00030352,2]
[356454199,1742475040826,-493.28256153,0.00030352,2]
[356454214,1742475043643,-946.70202961,0.00030352,2]
[356454219,1742475046725,-7196.90535062,0.00030352,2]
[356454220,1742475046735,-358.0712624,0.00031233,30]
[356454221,1742475046745,-358.0712624,0.000313,30]
[356454222,1742475046755,-358.0712624,0.000313,30]
[356454223,1742475046766,-358.0712624,0.000313,30]
[356454224,1742475046775,-358.0712624,0.000313,30]
[356454225,1742475046786,-358.0712624,0.000313,30]
[356454226,1742475046795,-500.0,0.00031596,2]
[356454227,1742475046805,-500.0,0.00031596,2]
[356454228,1742475046815,-500.0,0.00031596,2]
[356454229,1742475046825,-500.0,0.00031596,2]
[356454230,1742475046835,-1500.0,0.0003187,120]
[356454231,1742475046847,-1466.1965854,0.00031875,2]
[356454232,1742475046857,-267.7270915,0.00031876,120]
[356454233,1742475046867,-500.0,0.00031876,120]
[356454234,1742475046877,-500.0,0.00031876,120]
[356454235,1742475046887,-500.0,0.00031876,120]
[356454236,1742475046899,-500.0,0.00031876,120]
[356454237,1742475046910,-500.0,0.00031876,120]
[356454238,1742475046920,-500.0,0.00031876,120]
[356454239,1742475046930,-500.0,0.00031876,120]
[356454240,1742475046940,-500.0,0.00031876,120]
[356454241,1742475046950,-500.0,0.00031876,120]
[356454242,1742475046960,-500.0,0.00031876,120]
[356454243,1742475046972,-500.0,0.00031876,120]
[356454244,1742475046982,-500.0,0.00031876,120]
[356454245,1742475046992,-500.0,0.00031876,120]
[356454246,1742475047002,-500.0,0.00031876,120]
[356454247,1742475047012,-500.0,0.00031876,120]
[356454248,1742475047023,-500.0,0.00031876,120]
[356454249,1742475047032,-500.0,0.00031876,120]
[356454250,1742475047043,-500.0,0.00031876,120]
[356454251,1742475047052,-500.0,0.00031876,120]
[356454252,1742475047062,-500.0,0.00031876,120]
[356454253,1742475047072,-500.0,0.00031876,120]
[356454254,1742475047097,-500.0,0.00031876,120]
[356454255,1742475047109,-500.0,0.00031876,120]
[356454256,1742475047119,-500.0,0.00031876,120]
[356454257,1742475047129,-500.0,0.00031876,120]
[356454258,1742475047139,-500.0,0.00031876,120]
[356454259,1742475047150,-500.0,0.00031876,120]
[356454260,1742475047161,-500.0,0.00031876,120]
[356454261,1742475047171,-500.0,0.00031876,120]
[356454262,1742475047182,-500.0,0.00031876,120]
[356454263,1742475047193,-500.0,0.00031876,120]
[356454264,1742475047203,-500.0,0.00031876,120]
[356454265,1742475047214,-500.0,0.00031876,120]
[356454266,1742475047224,-500.0,0.00031876,120]
[356454267,1742475047234,-500.0,0.00031876,120]
[356454268,1742475047245,-487.13,0.00031876,120]
[356454269,1742475047256,-500.0,0.00031876,120]
[356454270,1742475047267,-205.8817139,0.00031889,4]
[356454271,1742475047277,-358.0712624,0.000319,30]
[356454272,1742475047288,-205.38690976,0.000319,6]
[356454273,1742475047299,-157.27411297,0.00031911,2]
[356454274,1742475047310,-600.0,0.00031956,2]
[356454275,1742475047321,-774.056639,0.00031965,5]
[356454276,1742475047331,-5907.51708872,0.00031965,2]
[356454277,1742475047341,-500.0,0.00031974,2]
[356454278,1742475047353,-159.07217086,0.00031974,2]
[356454279,1742475047364,-187.121989,0.00031975,30]
[356454280,1742475047375,-187.121989,0.00031975,30]
[356454281,1742475047386,-187.121989,0.00031975,30]
[356454282,1742475047398,-187.121989,0.00031975,30]
[356454283,1742475047409,-187.121989,0.00031975,30]
[356454284,1742475047420,-187.121989,0.00031975,30]
[356454285,1742475047431,-187.121989,0.00031975,30]
[356454286,1742475047443,-187.121989,0.00031975,30]
[356454287,1742475047454,-187.121989,0.00031975,30]
[356454288,1742475047466,-187.121989,0.00031975,30]
[356454289,1742475047476,-187.121989,0.00031975,30]
[356454290,1742475047487,-187.121989,0.00031975,30]
[356454291,1742475047498,-187.121989,0.00031975,30]
[356454292,1742475047509,-934.02073524,0.00031975,20]
[356454293,1742475047520,-3094.84014943,0.00031975,20]
[356454294,1742475047535,-3886.64022124,0.00031975,20]
[356454295,1742475047546,-2527.36456385,0.00031975,2]
[356454296,1742475047585,-219472.63543615,0.00031975,2]
[356454297,1742475047595,-500.0,0.00032,120]
[356454298,1742475047606,-1245.98088975,0.00032011,2]
[356454299,1742475047616,-510.81183651,0.0003206,120]
[356454300,1742475047626,-8238.36918429,0.00032169,7]
[356454301,1742475047639,-201565.1400227,0.00032169,7]
[356454346,1742476232906,-250.0,0.00030736,2]
[356454347,1742476232916,-227.8490047,0.00030736,2]
[356454348,1742476232926,-1335.29698,0.00030861,2]
[356454349,1742476232936,-157.27411295,0.000318,2]
[356454350,1742476232945,-302.0,0.00031856,2]
[356454351,1742476232955,-1168.54314799,0.00031865,2]
[356454352,1742476232967,-1731.55099464,0.00031865,2]
[356454353,1742476232986,-644.41611062,0.00031865,2]
[356454354,1742476232996,-239.14804095,0.00031872,2]
[356454355,1742476233006,-400.0,0.00031873,2]
[356454356,1742476233016,-599.06135804,0.00031874,2]
[356454357,1742476233026,-101888.12582206,0.00031875,2]
[356454381,1742476238634,-500.0,0.0003074,2]
[356454382,1742476238643,-19122.58512479,0.00031875,2]
[356454383,1742476238691,-425.78035054,0.00031875,2]
[356454384,1742476238751,-45547.28649964,0.00031875,2]
[356454387,1742476238762,-2340.7360253,0.00031875,2]
[356454388,1742476238773,-2053.21479634,0.00031875,2]
[356454424,1742476245773,-2495.61,0.00031875,2]
[356454425,1742476245785,-48126.66138133,0.00031875,2]
[356454426,1742476245795,-209.22576969,0.000319,6]
[356454427,1742476245804,-14924.9468495,0.00031911,2]
[356454428,1742476245831,-501.1689749,0.00031911,2]
[356454429,1742476245841,-37.15394352,0.0003199,2]
[356454430,1742476245864,-1144.34947423,0.0003199,2]
[356454431,1742476245881,-1000.0,0.0003217,120]
[356454432,1742476245892,-61.02680531,0.0003217,120]
[356454433,1742476290510,-154.43233188,0.00024953,120]
[356454434,1742476290532,-45.56766812,0.00025,2]
[356454439,1742476488074,300.0,0.00012,2]
[356454440,1742476529236,-206.01159091,0.00024,2]
[356454441,1742476538165,-150.0,0.00024,2]
[356454442,1742476546960,-150.0,0.00024,2]
[356454449,1742476642883,-179.74606632,0.00023,2]
[356454450,1742476662255,-292.51829582,0.00022,2]
[356454451,1742476686139,-246.27627781,0.00022,2]
[356454452,1742476739546,-151.0,0.0002178,2]
[356454453,1742476743776,-222.50413999,0.0002178,2]
[356454454,1742476805485,-255.99154232,0.0002178,2]
[356454455,1742476868411,-176.40567201,0.0002178,2]
[356454456,1742476925315,-165.53246295,0.00022,2]
[356454457,1742476937361,-203.84027914,0.000233,3]
[356454504,1742476983968,-223.57034363,0.0002178,2]
[356454506,1742477044232,-218.49776043,0.0002178,2]
[356454507,1742477103616,-203.3606391,0.0002178,2]
[356454508,1742477114808,-200.0,0.00021562,2]
[356454516,1742477298232,-155.84220323,0.0002178,2]
[356454534,1742477362145,-1082.07117881,0.0002178,2]
[356454535,1742477362165,-224.50897076,0.00022,2]
[356454536,1742477362962,-150.0,0.00022,2]
[356454561,1742477437777,-150.0,0.0002178,2]
[356454562,1742477437788,-5018.95502583,0.00022,2]
[356454563,1742477437798,-300.0,0.00022999,2]
[356454564,1742477437807,-4820.25393368,0.00023,2]
[356454565,1742477437816,-2.17131177,0.000233,3]
[356454566,1742477437826,-4493.98840909,0.00024,2]
[356454567,1742477437835,-420.0,0.00024967,2]
[356454568,1742477437845,-554.43233188,0.00025,2]
[356454569,1742477437855,-5000.0,0.00025,2]
[356454570,1742477437865,-945.2027342,0.00025195,2]
[356454571,1742477437875,-500.0,0.00025203,2]
[356454572,1742477437885,-500.0,0.00025203,2]
[356454574,1742477437894,-500.0,0.00025203,2]
[356454575,1742477437904,-253.36752089,0.00025203,2]
[356454576,1742477437914,-500.0,0.00025203,2]
[356454577,1742477437923,-500.0,0.00025203,2]
[356454578,1742477437933,-500.0,0.00025203,2]
[356454579,1742477437943,-500.0,0.00025203,2]
[356454580,1742477437954,-3629.69109894,0.00025204,2]
[356454582,1742477440431,-0.01377443,0.00025204,2]
[356454585,1742477443036,-409.02027948,0.00025204,2]
[356454586,1742477443049,-387.8996125,0.00025204,2]
[356454587,1742477443353,-300.0,0.00025204,2]
[356454700,1742477466034,-155.3917009,0.00025203,2]
[356454701,1742477466057,-63.66038306,0.00025203,2]
[356454702,1742477522931,-158.6305,0.00025204,2]
[356454703,1742477633833,-154.4112854,0.00023681,2]
[356454704,1742477644741,-150.0,0.0002368,2]
[356454706,1742478084848,-443.26688243,0.0002,2]
[356454707,1742478406155,-150.0,0.00021562,2]
[356454708,1742478406175,-388.70091239,0.00022,2]
[356454729,1742478632099,-8264.74860826,0.00022,2]
[356454730,1742478632109,-250.0,0.00022783,2]
[356454731,1742478632119,-417.04083565,0.00023499,2]
[356454732,1742478632132,-300.0,0.00023499,2]
[356454733,1742478632142,-25154.4112,0.000235,5]
[356454734,1742478632151,-275.10173138,0.00023567,2]
[356454735,1742478632161,-600.0,0.00023667,2]
[356454736,1742478632171,-27221.0384292,0.00023681,2]
[356454737,1742478632182,-538.81468301,0.00023999,2]
[356454738,1742478632192,-30000.0,0.00024,3]
[356454739,1742478632202,-897.94259749,0.000249,2]
[356454740,1742478632212,-6521.40114834,0.000249,2]
[356454741,1742478632224,-3939.46695393,0.000249,2]
[356454742,1742478632234,-184.94704593,0.00025006,2]
[356454743,1742478632247,-203.0,0.00025024,2]
[356454744,1742478632256,-24900.0,0.00025053,2]
[356454745,1742478632266,-320.0,0.00025106,2]
[356454746,1742478632275,-275.10173134,0.00025157,2]
[356454747,1742478632285,-1795.88519498,0.00025195,2]
[356454748,1742478632295,-203.43240726,0.00025203,2]
[356454749,1742478632305,-40111.94947538,0.00025205,7]
[356454750,1742478632326,-2639.9999992,0.00025205,7]
[356454770,1742478637928,-617.69842202,0.00025205,7]
[356454771,1742478638001,-1000.0,0.00025205,7]
[356454799,1742478640256,-0.01254681,0.00025205,7]
[356454804,1742478640289,-1510.82640466,0.00025205,7]
[356454865,1742478643240,-59.85565693,0.00025205,7]
[356454871,1742478646245,-32562.028235,0.00025205,7]
[356454872,1742478646255,-420.0,0.00025496,2]
[356454873,1742478646265,-250.0,0.0002575,2]
[356454874,1742478646277,-3795.6882477,0.000258,2]
[356454875,1742478646287,-20000.0,0.00026,7]
[356454876,1742478646296,-275.10173134,0.00026746,2]
[356454877,1742478646306,-402.36327864,0.00026849,2]
[356454878,1742478646316,-897.94259749,0.0002699,2]
[356454879,1742478646325,-20000.0,0.00027,7]
[356454880,1742478646335,-151.0,0.00027,7]
[356454881,1742478646344,-151.0,0.00027,7]
[356454882,1742478646354,-151.0,0.00027,7]
[356454883,1742478646367,-151.0,0.00027,7]
[356454884,1742478646379,-587.0,0.00027664,2]
[356454885,1742478646393,-15000.0,0.00028,7]
[356454886,1742478646406,-275.10173134,0.00028336,2]
[356454887,1742478646419,-250.00000001,0.0002878,2]
[356454888,1742478646431,-184.94704591,0.00028891,2]
[356454889,1742478646442,-959.23072784,0.00029,7]
[356454890,1742478646458,-9040.76927216,0.00029,7]
[356454891,1742478646470,-275.10173134,0.00029925,2]
[356454892,1742478646483,-897.94259749,0.0002999,2]
[356454893,1742478646495,-10000.0,0.0003,7]
[356454894,1742478646507,-151.0,0.0003,7]
[356454895,1742478646520,-151.0,0.0003,7]
[356454896,1742478646532,-199.0,0.00030015,2]
[356454897,1742478646545,-10000.0,0.00031,8]
[356454898,1742478646558,-24778.90257318,0.00031514,7]
[356454899,1742478646574,-4170.5,0.00031514,7]
[356454900,1742478646599,-1304.59999994,0.00031514,7]
[356454901,1742478646672,-33935.56114509,0.00031514,7]
[356454903,1742479339413,-297.56885504,0.00018175,2]
[356454904,1742479343133,-188.5442356,0.00018175,2]
[356454905,1742479348880,-246.27627781,0.00018175,2]
[356454906,1742479354004,-93.65580559,0.00018175,2]
[356454907,1742479354029,-406.34419441,0.00018175,2]
[356454908,1742479384415,-246.27627781,0.00018174,2]
[356454909,1742479446167,-184.98571916,0.00018174,2]
[356454910,1742479505730,-150.0,0.00018174,2]
[356454911,1742479533423,-177.38494749,0.00019178,10]
[356454912,1742479565765,-300.0,0.00018174,2]
[356454913,1742479565873,181.323074,0.00010959,2]
[356454914,1742479566972,-181.323074,0.00015068,2]
[356454915,1742479623735,-262.31674087,0.00018174,2]
[356454916,1742479638382,-37.68325913,0.00018174,2]
[356454917,1742479638405,-93.65580559,0.00018175,2]
[356454918,1742479638429,-68.66093528,0.00018175,2]
[356454919,1742479642229,-274.08920111,0.00018175,2]
[356454920,1742479650722,-225.91079889,0.00018175,2]
[356454921,1742479653054,-425.67750111,0.00018175,2]
[356454922,1742479685649,-150.0,0.00018174,2]
[356454923,1742479744927,-151.0,0.00018174,2]
[356454924,1742479765117,-149.0,0.00018174,2]
[356454925,1742479765140,-80.80106845,0.00018175,2]
[356454926,1742479765160,-500.0,0.00018175,2]
[356454927,1742479765182,-500.0,0.00018175,2]
[356454928,1742479765202,-500.0,0.00018175,2]
[356454929,1742479765224,-500.0,0.00018175,2]
[356454930,1742479765244,-500.0,0.00018175,2]
[356454931,1742479765266,-500.0,0.00018175,2]
[356454932,1742479765287,-500.0,0.00018175,2]
[356454933,1742479765308,-500.0,0.00018175,2]
[356454934,1742479765328,-500.0,0.00018175,2]
[356454935,1742479765348,-500.0,0.00018175,2]
[356454936,1742479765369,-500.0,0.00018175,2]
[356454937,1742479765389,-500.0,0.00018175,2]
[356454938,1742479765410,-366.89940297,0.00018175,2]
[356454939,1742479767261,-151.0,0.00018175,2]
[356454977,1742479832346,-151.0,0.00017993,2]
[356454979,1742479832357,-212.8604396,0.00018175,2]
[356454981,1742479832366,-181.323074,0.00019178,2]
[356454983,1742479832376,-1000.0,0.00022,7]
[356454985,1742479832386,-600.0,0.00022165,2]
[356454987,1742479832395,-300.0,0.00022177,2]
[356454989,1742479832405,-500.0,0.00022178,2]
[356454991,1742479832415,-500.0,0.00022178,2]
[356454993,1742479832424,-500.0,0.00022178,2]
[356454995,1742479832434,-190.0,0.00022178,2]
[356454997,1742479832443,-500.0,0.00022178,2]
[356454999,1742479832456,-500.0,0.00022178,2]
[356455001,1742479832466,-500.0,0.00022178,2]
[356455003,1742479832476,-500.0,0.00022178,2]
[356455004,1742479832486,-500.0,0.00022178,2]
[356455007,1742479832500,-500.0,0.00022178,2]
[356455010,1742479832510,-500.0,0.00022178,2]
[356455012,1742479832521,-500.0,0.00022178,2]
[356455015,1742479832532,-500.0,0.00022178,2]
[356455018,1742479832542,-500.0,0.00022178,2]
[356455019,1742479832553,-500.0,0.00022178,2]
[356455020,1742479832563,-500.0,0.00022178,2]
[356455021,1742479832572,-500.0,0.00022178,2]
[356455022,1742479832582,-500.0,0.00022178,2]
[356455023,1742479832592,-622.2,0.0002222,2]
[356455024,1742479832602,-645.2214,0.00022275,2]
[356455025,1742479832612,-669.0945918,0.0002233,2]
[356455026,1742479832622,-693.8510917,0.00022385,2]
[356455027,1742479832632,-719.52358209,0.0002244,2]
[356455028,1742479832642,-1200.0,0.00022495,2]
[356455029,1742479832652,-181.323074,0.00023288,2]
[356455030,1742479832672,-1374.05008815,0.000234,3]
[356455031,1742479832683,-1374.05008799,0.000234,3]
[356455032,1742479832693,-1374.05008799,0.000234,3]
[356455033,1742479832703,-1374.05008799,0.000234,3]
[356455034,1742479832713,-1374.05008799,0.000234,3]
[356455035,1742479832724,-1374.05008799,0.000234,3]
[356455036,1742479832734,-1374.05008799,0.000234,3]
[356455037,1742479832747,-160.0,0.00023762,3]
[356455038,1742479832757,-1374.05008799,0.00023762,3]
[356455039,1742479832768,-199.0,0.00024095,2]
[356455040,1742479832778,-1374.05008799,0.00024314,3]
[356455041,1742479832789,-1374.05008799,0.00024866,4]
[356455042,1742479832799,-1000.0,0.00025053,5]
[356455043,1742479832809,-1000.0,0.00025053,5]
[356455044,1742479832820,-1374.05008799,0.00025417,4]
[356455045,1742479832830,-500.0,0.00025913,2]
[356455046,1742479832840,-1374.05008799,0.00025969,4]
[356455047,1742479832849,-218.349159,0.00026386,5]
[356455048,1742479832860,-1374.05008799,0.00026521,4]
[356455049,1742479832870,-1374.05008799,0.00027072,4]
[356455050,1742479832879,-160.0,0.00027214,2]
[356455051,1742479832889,-160.0,0.00027296,2]
[356455052,1742479832899,-160.0,0.00027296,2]
[356455053,1742479832908,-450.0,0.00027397,10]
[356455054,1742479832918,-181.323074,0.00027397,2]
[356455055,1742479832928,-500.0,0.00027397,10]
[356455056,1742479832937,-1374.05008799,0.00027624,4]
[356455057,1742479832947,-1374.05008799,0.00028176,5]
[356455058,1742479832956,-1374.05008799,0.00028728,5]
[356455059,1742479832966,-1374.05008799,0.00029279,5]
[356455060,1742479832976,-552.6955875,0.00029308,2]
[356455061,1742479832986,-1374.05008799,0.00029831,5]
[356455062,1742479832999,-190.0,0.0003,2]
[356455063,1742479833009,-782.39751181,0.00030382,2]
[356455064,1742479833019,-1374.05008799,0.00030383,5]
[356455065,1742479833029,-399.002,0.00030834,2]
[356455066,1742479833039,-1374.05008799,0.00030934,5]
[356455067,1742479833049,-154.1111524,0.00031233,30]
[356455068,1742479833059,-153.0,0.00031233,30]
[356455069,1742479833069,-1374.05008799,0.00031486,6]
[356455070,1742479833079,-190.0,0.00031514,2]
[356455071,1742479833088,-3000.0,0.00031639,2]
[356455072,1742479833098,-217.14517722,0.00031681,2]
[356455073,1742479833108,-966.06816711,0.00031729,2]
[356455074,1742479833118,-500.0,0.00031737,2]
[356455075,1742479833128,-293.31014276,0.00031737,2]
[356455076,1742479833138,-413282.01401,0.00031738,7]
[356455077,1742479833148,-67297.4379752,0.00031739,18]
[356455078,1742479833158,-702.63,0.00031761,3]
[356455079,1742479833168,-702.67,0.00031771,3]
[356455080,1742479833178,-153.0,0.00031781,30]
[356455081,1742479833188,-1151.8088111,0.000318,2]
[356455082,1742479833198,-247.75573506,0.00031881,2]
[356455083,1742479833207,-4830.34083555,0.0003189,2]
[356455084,1742479833218,-222000.0,0.000319,2]
[356455085,1742479833228,-1000.0,0.000319,120]
[356455086,1742479833238,-150.0,0.0003196,2]
[356455087,1742479833251,-157.99570479,0.00031989,2]
[356455088,1742479833261,-1932.13633422,0.0003199,2]
[356455089,1742479833270,-18270.22044761,0.00031999,20]
[356455090,1742479833280,-10000.0,0.00032,8]
[356455091,1742479833290,-4607.301005,0.00032,2]
[356455092,1742479833300,-151.0,0.00032,7]
[356455093,1742479833310,-4607.301005,0.00032,2]
[356455094,1742479833321,-1374.05008799,0.00032038,6]
[356455095,1742479833331,-241.8,0.000321,5]
[356455096,1742479833342,-1000.0,0.0003217,120]
[356455097,1742479833352,-1012.9322078,0.0003217,120]
[356455098,1742479833362,-737.0,0.000322,2]
[356455099,1742479833372,-4607.301005,0.00032441,2]
[356455100,1742479833383,-151.0,0.00032441,7]
[356455101,1742479833395,-4607.301005,0.00032441,2]
[356455102,1742479833405,-83925.71657228,0.00032441,20]
[356455103,1742479833415,-540.423,0.00032441,2]
[356455104,1742479833426,-1913.0,0.00032441,2]
[356455105,1742479833436,-150.0,0.00032587,14]
[356455106,1742479833446,-150.0,0.00032587,14]
[356455107,1742479833459,-1374.05008799,0.0003259,6]
[356455108,1742479833469,-288.829,0.00032641,33]
[356455109,1742479833480,-161.92990545,0.00032673,33]
[356455110,1742479833491,-966.06816711,0.00032717,2]
[356455111,1742479833502,-160.31519562,0.0003274,30]
[356455112,1742479833512,-217.14517721,0.00032773,2]
[356455113,1742479833523,-10626.7498382,0.00032866,2]
[356455114,1742479833536,-151.0,0.00032866,7]
[356455115,1742479833547,-151.0,0.00032866,7]
[356455116,1742479833557,-151.0,0.00032866,7]
[356455117,1742479833568,-151.0,0.00032872,7]
[356455118,1742479833578,-151.0,0.00032872,7]
[356455119,1742479833588,-285.4478,0.00032872,7]
[356455120,1742479833599,-500.0,0.00032873,5]
[356455121,1742479833609,-500.0,0.00032873,5]
[356455122,1742479833619,-500.97336375,0.00032873,5]
[356455123,1742479833630,-501.28841204,0.00032873,2]
[356455124,1742479833641,-439.0307576,0.00032873,5]
[356455125,1742479833651,-500.0,0.00032873,5]
[356455126,1742479833662,-500.0,0.00032873,5]
[356455127,1742479833673,-500.0,0.00032873,5]
[356455128,1742479833683,-500.0,0.00032873,5]
[356455129,1742479833693,-500.0,0.00032873,5]
[356455130,1742479833704,-500.0,0.00032873,5]
[356455131,1742479833714,-500.0,0.00032873,5]
[356455132,1742479833725,-501.70568664,0.00032873,5]
[356455133,1742479833736,-477.86072213,0.00032873,4]